fUSD/lending_fUSD_20241123
["ID","MTS","AMOUNT","RATE_DAILY","PERIOD"]
[343077217,1732329079748,-13666.0,0.00139746,120]
[343077218,1732329079758,-1928.531,0.00140346,120]
[343077219,1732329079768,-561.0,0.00140346,120]
[343077220,1732329079777,-3750.0,0.00140346,120]
[343077221,1732329079787,-815.0,0.00140346,2]
[343077222,1732329079797,-1263.263,0.00140346,120]
[343077223,1732329079807,-927.756,0.00140346,120]
[343077224,1732329079817,-3517.0,0.00140346,120]
[343077225,1732329079827,-150.0,0.00141153,120]
[343077226,1732329079836,-525.956,0.001416,120]
[343077227,1732329079846,-250.34753102,0.00141781,120]
[343077228,1732329079856,-150.0,0.00142741,120]
[343077229,1732329079866,-564.0,0.00142746,120]
[343077230,1732329079876,-1257.0,0.00142746,120]
[343077231,1732329079886,-150.0,0.00142746,2]
[343077232,1732329079895,-150.0,0.00142746,120]
[343077233,1732329079905,-5944.0,0.00142746,120]
[343077234,1732329079914,-1162.0,0.00142746,120]
[343077235,1732329079924,-13666.0,0.00142746,120]
[343077236,1732329079935,-152.796,0.00143009,120]
[343077237,1732329079944,-206.446,0.00143009,120]
[343077238,1732329079954,-1928.0,0.00143346,120]
[343077239,1732329079964,-561.0,0.00143346,120]
[343077240,1732329079974,-3750.0,0.00143346,120]
[343077241,1732329079984,-815.0,0.00143346,2]
[343077242,1732329079995,-1261.0,0.00143346,120]
[343077243,1732329080005,-918.0,0.00143346,120]
[343077244,1732329080014,-3517.0,0.00143346,120]
[343077245,1732329080024,-250.34753102,0.00143836,120]
[343077246,1732329080033,-151.6979041,0.00143992,60]
[343077247,1732329080043,-150.0,0.00144153,120]
[343077248,1732329080053,-564.0,0.00145746,120]
[343077249,1732329080063,-1257.0,0.00145746,120]
[343077250,1732329080073,-150.0,0.00145746,2]
[343077251,1732329080084,-150.0,0.00145746,120]
[343077252,1732329080094,-5944.0,0.00145746,120]
[343077253,1732329080103,-1162.0,0.00145746,120]
[343077254,1732329080117,-13666.0,0.00145746,120]
[343077255,1732329080127,-250.34753102,0.0014589,120]
[343077256,1732329080137,-150.0,0.00146009,120]
[343077257,1732329080147,-150.0,0.00146009,120]
[343077258,1732329080158,-525.999,0.0014632,120]
[343077259,1732329080167,-1928.0,0.00146346,120]
[343077260,1732329080177,-561.0,0.00146346,120]
[343077261,1732329080192,-3750.0,0.00146346,120]
[343077262,1732329080202,-815.0,0.00146346,2]
[343077263,1732329080212,-1261.0,0.00146346,120]
[343077264,1732329080224,-918.0,0.00146346,120]
[343077265,1732329080234,-3517.0,0.00146346,120]
[343077266,1732329080245,-250.34753102,0.00147945,120]
[343077267,1732329080256,-564.0,0.00148746,120]
[343077268,1732329080266,-1257.0,0.00148746,120]
[343077269,1732329080277,-150.0,0.00148746,2]
[343077270,1732329080287,-150.0,0.00148746,120]
[343077271,1732329080297,-5944.0,0.00148746,120]
[343077272,1732329080307,-1162.0,0.00148746,120]
[343077273,1732329080317,-13666.0,0.00148746,120]
[343077274,1732329080327,-150.0,0.00149009,120]
[343077275,1732329080336,-150.0,0.00149009,120]
[343077276,1732329080346,-1928.0,0.00149346,120]
[343077277,1732329080355,-561.0,0.00149346,120]
[343077278,1732329080364,-3750.0,0.00149346,120]
[343077279,1732329080374,-815.0,0.00149346,2]
[343077280,1732329080385,-1261.0,0.00149346,120]
[343077281,1732329080395,-918.0,0.00149346,120]
[343077282,1732329080404,-3517.0,0.00149346,120]
[343077283,1732329080414,-4817.0,0.0015,120]
[343077284,1732329080424,-250.34753102,0.0015,120]
[343077285,1732329080436,-300.0,0.00150685,120]
[343077286,1732329080445,-526.027,0.0015104,120]
[343077287,1732329080455,-150.0,0.00151686,30]
[343077288,1732329080466,-564.0,0.00151746,120]
[343077289,1732329080475,-1257.0,0.00151746,120]
[343077290,1732329080486,-150.0,0.00151746,2]
[343077291,1732329080496,-5944.0,0.00151746,120]
[343077292,1732329080505,-150.0,0.00151746,120]
[343077293,1732329080515,-1162.0,0.00151746,120]
[343077294,1732329080524,-13666.0,0.00151746,120]
[343077295,1732329080535,-250.34753102,0.00152055,120]
[343077296,1732329080544,-1928.0,0.00152346,120]
[343077297,1732329080554,-561.0,0.00152346,120]
[343077298,1732329080564,-3750.0,0.00152346,120]
[343077299,1732329080574,-815.0,0.00152346,2]
[343077300,1732329080585,-1261.0,0.00152346,120]
[343077301,1732329080595,-918.0,0.00152346,120]
[343077302,1732329080606,-3517.0,0.00152346,120]
[343077303,1732329080615,-150.0,0.00152883,120]
[343077304,1732329080625,-1000.0,0.0015385,120]
[343077305,1732329080636,-250.34753102,0.0015411,120]
[343077306,1732329080646,-1257.0,0.00154746,120]
[343077307,1732329080655,-150.0,0.00154746,2]
[343077308,1732329080665,-150.0,0.00154746,120]
[343077309,1732329080675,-5944.0,0.00154746,120]
[343077310,1732329080687,-1162.0,0.00154746,120]
[343077311,1732329080696,-13666.0,0.00154746,120]
[343077312,1732329080705,-1928.0,0.00155346,120]
[343077313,1732329080715,-561.0,0.00155346,120]
[343077314,1732329080724,-3750.0,0.00155346,120]
[343077315,1732329080734,-815.0,0.00155346,2]
[343077316,1732329080743,-1261.0,0.00155346,120]
[343077317,1732329080753,-918.0,0.00155346,120]
[343077318,1732329080762,-3517.0,0.00155346,120]
[343077319,1732329080772,-525.983,0.0015576,120]
[343077320,1732329080782,-250.34753102,0.00156164,120]
[343077321,1732329080792,-150.0,0.00156406,120]
[343077322,1732329080802,-1257.0,0.00157746,120]
[343077323,1732329080811,-150.0,0.00157746,2]
[343077324,1732329080821,-150.0,0.00157746,120]
[343077325,1732329080831,-5944.0,0.00157746,120]
[343077326,1732329080840,-1162.0,0.00157746,120]
[343077327,1732329080850,-13666.0,0.00157746,120]
[343077328,1732329080860,-250.34753102,0.00158219,120]
[343077329,1732329080869,-1928.0,0.00158346,120]
[343077330,1732329080879,-561.0,0.00158346,120]
[343077331,1732329080888,-3750.0,0.00158346,120]
[343077332,1732329080898,-815.0,0.00158346,2]
[343077333,1732329080908,-1261.0,0.00158346,120]
[343077334,1732329080919,-918.0,0.00158346,120]
[343077335,1732329080930,-3517.0,0.00158346,120]
[343077336,1732329080946,-250.34753102,0.00160274,120]
[343077337,1732329080956,-526.002,0.0016048,120]
[343077338,1732329080967,-1175.24,0.00160746,120]
[343077339,1732329080977,-150.0,0.00160746,2]
[343077340,1732329080987,-2127.502,0.00160746,120]
[343077341,1732329081084,-150.0,0.00160746,120]
[343077342,1732329081094,-13666.0,0.00160746,120]
[343077343,1732329081104,-305.011,0.00161346,120]
[343077344,1732329081116,-3750.0,0.00161346,120]
[343077345,1732329081126,-815.0,0.00161346,2]
[343077346,1732329081136,-1261.0,0.00161346,120]
[343077347,1732329081147,-918.0,0.00161346,120]
[343077348,1732329081157,-3517.0,0.00161346,120]
[343077349,1732329081166,-250.34753102,0.00162329,120]
[343077350,1732329081176,-150.0,0.00163395,120]
[343077351,1732329081191,-150.0,0.00163746,2]
[343077352,1732329081202,-150.0,0.00163746,120]
[343077353,1732329081211,-13666.0,0.00163746,120]
[343077354,1732329081221,-3750.0,0.00164346,120]
[343077355,1732329081231,-815.0,0.00164346,2]
[343077356,1732329081241,-1261.0,0.00164346,120]
[343077357,1732329081250,-3517.0,0.00164346,120]
[343077358,1732329081260,-300.0,0.00164384,120]
[343077359,1732329081270,-250.34,0.00164384,120]
[343077360,1732329081281,-526.024,0.001652,120]
[343077361,1732329081291,-1958.237,0.00166746,120]
[343077362,1732329081302,-3750.0,0.00167346,120]
[343077363,1732329081312,-815.0,0.00167346,2]
[343077364,1732329081322,-3517.0,0.00167346,120]
[343077365,1732329081332,-526.004,0.0016992,120]
[343077366,1732329081342,-3750.0,0.00170346,120]
[343077367,1732329081352,-815.0,0.00170346,2]
[343077368,1732329081361,-325.568,0.00170346,120]
[343077369,1732329081370,-1752.805,0.00173346,120]
[343077370,1732329081379,-815.0,0.00173346,2]
[343077371,1732329081387,-525.985,0.0017464,120]
[343077372,1732329081396,-646.322,0.00176346,2]
[343077373,1732329081406,-525.966,0.0017936,120]
[343077374,1732329081415,-1498.2862888,0.0018,7]
[343077375,1732329081424,-526.825,0.0018408,120]
[343077376,1732329081437,-150.0,0.00187675,120]
[343077377,1732329081447,-150.0,0.00188748,120]
[343077378,1732329081458,-10000.0,0.00189684,120]
[343077379,1732329081469,-233.0,0.00192,120]
[343077380,1732329081479,-550764.259792,0.00192078,60]
[343077381,1732329081489,-5000.0,0.00194,120]
[343077382,1732329081499,-2035.26946703,0.00196436,30]
[343077383,1732329081510,-11932.50708099,0.00198,120]
[343077384,1732329081520,-1635.920201,0.00198798,120]
[343077385,1732329081530,-300.0,0.002,120]
[343077386,1732329081540,-160.0,0.002,120]
[343077387,1732329081550,-5000.0,0.002,120]
[343077388,1732329081560,-4817.0,0.002,120]
[343077389,1732329081570,-261.19534869,0.0020039,120]
[343077390,1732329081579,-550.77,0.002004,30]
[343077391,1732329081589,-1000.0,0.00227527,120]
[343077392,1732329081599,-151.0,0.002323,120]
[343077393,1732329081610,-150.0,0.00232832,120]
[343077394,1732329081620,-150.0,0.00240021,120]
[343077395,1732329081631,-1134.0,0.00246221,120]
[343077396,1732329081641,-2076.1,0.00246799,74]
[343077397,1732329081650,-1134.0,0.00248759,120]
[343077398,1732329081660,-672.83773905,0.0024999,21]
[343077399,1732329081670,-50000.0,0.0025,120]
[343077400,1732329081679,-330.77505279,0.0025,10]
[343077401,1732329081692,-1134.0,0.00251298,120]
[343077402,1732329081702,-413.08,0.002532,120]
[343077403,1732329081711,-1134.0,0.00253836,120]
[343077404,1732329081721,-559.6738973,0.00253836,120]
[343077405,1732329081732,-30000.0,0.00255433,120]
[343077406,1732329081742,-1134.0,0.00256374,120]
[343077407,1732329081752,-193.0,0.00256599,120]
[343077408,1732329081763,-1381.04347723,0.002574,120]
[343077409,1732329081773,-1134.0,0.00258913,120]
[343077410,1732329081784,-1134.0,0.00261451,120]
[343077411,1732329081793,-2086.4,0.00265156,60]
[343077412,1732329081802,-1500.0,0.00273972,120]
[343077413,1732329081813,-1500.0,0.00273972,120]
[343077414,1732329081823,-1500.0,0.00273972,120]
[343077415,1732329081833,-879.49328967,0.00273972,120]
[343077416,1732329081843,-2304.51,0.00273973,120]
[343077417,1732329081853,-50000.0,0.0028,120]
[343077418,1732329081864,-10000.0,0.00280779,120]
[343077419,1732329081874,-157.03446702,0.002888,120]
[343077420,1732329081883,-5000.0,0.0029,120]
[343077421,1732329081893,-259.41850045,0.00291799,30]
[343077422,1732329081904,-1159.17955363,0.00291799,60]
[343077423,1732329081915,-684.17066282,0.00291799,60]
[343077424,1732329081924,-150.0,0.00295823,120]
[343077425,1732329081938,-550764.259792,0.00297507,90]
[343077426,1732329081948,-10000.0,0.00298,120]
[343077427,1732329081959,-2500.0,0.00299999,120]
[343077428,1732329081968,-300.0,0.003,120]
[343077429,1732329081978,-50000.0,0.003,120]
[343077430,1732329081989,-1943.86413616,0.003,120]
[343077431,1732329082000,-5000.0,0.003,120]
[343077432,1732329082010,-160.0,0.003,120]
[343077433,1732329082020,-4817.0,0.003,120]
[343077434,1732329082031,-3001.8137427,0.003,120]
[343077435,1732329082041,-5000.0,0.00300273,120]
[343077436,1732329082052,-7500.0,0.00300547,120]
[343077437,1732329082063,-3845.7370517,0.00300821,120]
[343077438,1732329082074,-150.0,0.00304495,120]
[343077439,1732329082085,-150.0,0.00309526,120]
[343077440,1732329082096,-50000.0,0.0031,120]
[343077441,1732329082109,-227.43899725,0.00318649,30]
[343077442,1732329082125,-270.91839298,0.00318699,30]
[343077443,1732329082136,-474.0,0.003232,120]
[343077444,1732329082147,-1000.0,0.0032996,120]
[343077445,1732329082160,-158.88,0.00335,90]
[343077446,1732329082175,-1756.8,0.0033828,67]
[343077447,1732329082193,-46843.91836911,0.0034,120]
[343077448,1732329082206,-166.59155,0.00340508,120]
[343077449,1732329082217,-150.0,0.00340869,120]
[343077450,1732329082228,-166.59155,0.00349021,120]
[343077451,1732329082239,-50000.0,0.0035,120]
[343077452,1732329082249,-342.0,0.003538,120]
[343077453,1732329082259,-166.59155,0.00357533,120]
[343077454,1732329082270,-1200.0,0.003799,120]
[343077455,1732329082280,-50000.0,0.0038,120]
[343077456,1732329082289,-19999.999999,0.0038,120]
[343077457,1732329082299,-250.0,0.00384,20]
[343077458,1732329082308,-250.0,0.00384,60]
[343077459,1732329082318,-250.0,0.00384,40]
[343077460,1732329082327,-250.0,0.00384,5]
[343077461,1732329082336,-250.0,0.00384,10]
[343077462,1732329082346,-5000.0,0.0039,120]
[343077463,1732329082356,-17918.00718988,0.0039,120]
[343077464,1732329082367,-550764.259792,0.00393146,120]
[343077465,1732329082376,-4693.787441,0.00399726,30]
[343077466,1732329082386,-1000.0,0.00399999,120]
[343077467,1732329082396,-300.0,0.004,120]
[343077468,1732329082406,-68684.97239709,0.004,120]
[343077469,1732329082415,-50000.0,0.004,120]
[343077470,1732329082425,-5000.0,0.004,120]
[343077471,1732329082437,-160.0,0.004,120]
[343077472,1732329082447,-4817.0,0.004,120]
[343077473,1732329082456,-50000.0,0.0041,120]
[343077474,1732329082465,-150.0,0.0041082,120]
[343077475,1732329082475,-150.0,0.00411257,120]
[343077476,1732329082484,-10000.0,0.00415621,120]
[343077477,1732329082569,-150.0,0.00419593,120]
[343077478,1732329082579,-337.4991979,0.00420093,120]
[343077479,1732329082588,-161.300976,0.0042312,2]
[343077480,1732329082598,-150.0,0.00429897,120]
[343077481,1732329082609,-23530.77776709,0.004299,120]
[343077482,1732329082618,-656.0,0.00432,120]
[343077483,1732329082629,-30000.0,0.004325,120]
[343077484,1732329082639,-46843.91836911,0.0044,120]
[343077485,1732329082650,-150.0,0.00447293,120]
[343077486,1732329082661,-50000.0,0.0045,120]
[343077487,1732329082673,-150.0,0.00450462,120]
[343077488,1732329082685,-624.0,0.004538,120]
[343077489,1732329082695,-1000.0,0.00463669,120]
[343077490,1732329082706,-150.0,0.00473281,120]
[343077491,1732329082716,-50000.0,0.0048,120]
[343077492,1732329082726,-10000.0,0.0049,120]
[343077493,1732329082737,-550764.259792,0.00492785,120]
[343077494,1732329082747,-2130.6,0.00495,80]
[343077495,1732329082758,-410.8283468,0.00495883,30]
[343077496,1732329082768,-451.0,0.0049898,120]
[343077497,1732329082778,-20771.801995,0.004999,120]
[343077498,1732329082789,-259.41850045,0.004999,30]
[343077499,1732329082799,-1159.17955363,0.004999,60]
[343077500,1732329082808,-684.17066282,0.004999,60]
[343077501,1732329082818,-300.0,0.005,120]
[343077502,1732329082827,-50000.0,0.005,120]
[343077503,1732329082837,-50000.0,0.005,120]
[343077504,1732329082846,-5000.0,0.005,120]
[343077505,1732329082855,-160.0,0.005,120]
[343077506,1732329082864,-4817.0,0.005,120]
[343077507,1732329082873,-500.0,0.005,120]
[343077508,1732329082882,-313.14700358,0.005,120]
[343077509,1732329082891,-439.76175898,0.005,120]
[343077510,1732329082900,-433.87425965,0.005,7]
[343077511,1732329082910,-496.66047145,0.005,120]
[343077512,1732329082919,-150.0,0.00506319,120]
[343077513,1732329082929,-50000.0,0.0051,120]
[343077514,1732329082942,-1800.0255,0.0051241,113]
[343077515,1732329082952,-12000.0,0.0052,120]
[343077516,1732329082962,-50000.0,0.0054,120]
[343077517,1732329082971,-50000.0,0.0055,120]
[343077518,1732329082981,-227.43899725,0.005536,30]
[343077519,1732329082991,-270.91839298,0.005537,30]
[343077520,1732329083001,-342.0,0.005538,120]
[343077521,1732329083010,-20000.0,0.00554325,120]
[343077522,1732329083020,-161.300976,0.0056,2]
[343077523,1732329083029,-150.0,0.00567769,120]
[343077524,1732329083039,-50000.0,0.0058,120]
[343077525,1732329083048,-10000.0,0.0059,120]
[343077526,1732329083057,-50361.65169643,0.0059,30]
[343077527,1732329083067,-550764.259792,0.00590874,120]
[343077528,1732329083076,-19938.642799,0.00598,120]
[343077529,1732329083085,-1000.0,0.00599999,120]
[343077530,1732329083094,-300.0,0.006,120]
[343077531,1732329083104,-5266.38547074,0.006,120]
[343077532,1732329083113,-50000.0,0.006,120]
[343077533,1732329083123,-5000.0,0.006,120]
[343077534,1732329083132,-160.0,0.006,120]
[343077535,1732329083141,-4817.0,0.006,120]
[343077536,1732329083151,-200.0,0.006,120]
[343077537,1732329083161,-50000.0,0.0061,120]
[343077538,1732329083170,-10000.0,0.00615221,120]
[343077539,1732329083179,-1000.0,0.0062739,120]
[343077540,1732329083190,-50000.0,0.0063,120]
[343077541,1732329083199,-308.0,0.00632,120]
[343077542,1732329083208,-150.0,0.00634534,120]
[343077543,1732329083217,-611.0,0.00635045,120]
[343077544,1732329083227,-150.0,0.00639701,120]
[343077545,1732329083236,-50000.0,0.0064,120]
[343077546,1732329083245,-46843.91836911,0.0064,120]
[343077547,1732329083254,-201.0,0.0064394,120]
[343077548,1732329083264,-50000.0,0.0065,120]
[343077549,1732329083273,-1025.88604036,0.0065,2]
[343077550,1732329083283,-153.98,0.00650959,60]
[343077551,1732329083292,-304.8,0.00650959,60]
[343077552,1732329083302,-158.88,0.0066,90]
[343077553,1732329083312,-50000.0,0.0068,120]
[343077554,1732329083321,-201.0,0.0068611,120]
[343077555,1732329083331,-201.0,0.0068611,120]
[343077556,1732329083341,-204.0,0.0068611,120]
[343077557,1732329083350,-150.0,0.00688787,120]
[343077558,1732329083360,-275382.129896,0.00694343,120]
[343077559,1732329083370,-1000.0,0.00699999,120]
[343077560,1732329083379,-97857.51766182,0.007,120]
[343077561,1732329083389,-300.0,0.007,120]
[343077562,1732329083398,-50000.0,0.007,120]
[343077563,1732329083408,-8304.58119537,0.007,120]
[343077564,1732329083418,-4998.73649689,0.007,2]
[343077565,1732329083427,-160.0,0.007,120]
[343077566,1732329083439,-5000.0,0.007,120]
[343077567,1732329083448,-266.16349936,0.007,120]
[343077568,1732329083458,-10000.0,0.007,120]
[343077569,1732329083467,-869.905821,0.007,120]
[343077570,1732329083477,-50000.0,0.0071,120]
[343077571,1732329083486,-150.0,0.00713627,120]
[343077572,1732329083496,-201.0,0.0072829,120]
[343077573,1732329083506,-219.0,0.0072829,120]
[343077574,1732329083515,-201.0,0.0072829,120]
[343077575,1732329083524,-204.0,0.0072829,120]
[343077576,1732329083533,-150.0,0.007295,120]
[343077577,1732329083542,-50000.0,0.0073,120]
[343077578,1732329083551,-161.0,0.00732,120]
[343077579,1732329083560,-1000.0,0.00739999,120]
[343077580,1732329083570,-50000.0,0.0074,120]
[343077581,1732329083579,-46843.91836911,0.0074,120]
[343077582,1732329083589,-9468.24489267,0.0074,120]
[343077583,1732329083598,-350.0,0.00747475,120]
[343077584,1732329083607,-150.0,0.00748573,120]
[343077585,1732329083617,-1000.0,0.00749999,120]
[343077586,1732329083626,-1000.0,0.0075,120]
[343077587,1732329083635,-10000.0,0.0075,120]
[343077588,1732329083644,-50000.0,0.0075,120]
[343077589,1732329083841,-1097.80007,0.0076,30]
[343077590,1732329083863,-150.0,0.00147153,120]
[343077591,1732329083873,-3004.40002,0.00297303,89]
[343077593,1732329172846,840.4,0.0006688,30]
[343077594,1732329173087,2786.2018,0.00052036,7]
[343077595,1732329174024,1416.461221,0.00052036,7]
[343077596,1732329181944,150.0,0.00066889,12]
[343077598,1732329209697,-100000.0,0.0006689,2]
[343077599,1732329213547,-99872.8585,0.0006689,2]
[343077600,1732329213575,-127.1415,0.000669,2]
[343077601,1732329221995,-372.8585,0.000669,2]
[343077602,1732329222018,-163.17253094,0.000669,30]
[343077605,1732329275327,1000.0,0.00065753,120]
[343077606,1732329275636,1000.0,0.00065753,120]
[343077607,1732329276087,1000.0,0.00065753,120]
[343077608,1732329276433,1000.0,0.00065753,120]
[343077609,1732329276713,1000.0,0.00065753,120]
[343077610,1732329277528,1044.56325216,0.00065753,120]
[343077611,1732329381825,250.0,0.00031,2]
[343077612,1732329382915,300.0,0.00033,2]
[343077613,1732329384049,350.0,0.00035,2]
[343077614,1732329385078,400.0,0.00037,2]
[343077615,1732329386157,450.0,0.00039,2]
[343077616,1732329387245,500.0,0.00041,2]
[343077617,1732329388325,550.0,0.00043,2]
[343077618,1732329389414,600.0,0.00045,2]
[343077619,1732329421266,1000.0,0.00067,2]
[343077620,1732329448625,999.0,0.00069,2]
[343077621,1732329455742,1000.0,0.00052,30]
[343077622,1732329466924,999.0,0.00067,2]
[343077623,1732329516772,-362.78336624,0.0007,120]
[343077624,1732329516802,-2990.10260447,0.00072831,15]
[343077625,1732329538724,886.7040693,0.00069001,2]
[343077626,1732329592931,1000.0,0.00074001,2]
[343077627,1732329743997,500.0,0.00065199,120]
[343077628,1732329793423,2000.0,0.00074001,2]
[343077629,1732329822155,1000.0,0.00074001,120]
[343077630,1732329823948,1000.0,0.00074001,120]
[343077631,1732329826613,1000.0,0.00074001,120]
[343077632,1732329828828,15335.29569172,0.00074,120]
[343077633,1732329846966,1000.0,0.00074001,120]
[343077634,1732329853893,1000.0,0.00043355,120]
[343077635,1732329859112,1000.0,0.00074001,120]
[343077636,1732329910933,1000.0,0.00043355,90]
[343077637,1732329920351,-781.22487687,0.000741,2]
[343077638,1732329920375,-193.0,0.000742,120]
[343077639,1732329920400,-2010.36,0.00076,120]
[343077640,1732329920428,-151.0,0.00076,120]
[343077641,1732329920456,-151.0,0.00076,120]
[343077642,1732329920479,-151.0,0.00076,120]
[343077643,1732329920505,-150.0,0.00076,60]
[343077644,1732329920528,-362.86,0.00076,60]
[343077645,1732329920551,-302.76,0.00076,60]
[343077646,1732329920575,-362.86,0.00076,60]
[343077647,1732329920598,-362.86,0.00076,60]
[343077648,1732329920623,-362.86,0.00076,60]
[343077649,1732329920647,-150.0,0.00076,60]
[343077650,1732329920670,-150.0,0.00076,60]
[343077651,1732329920693,-150.0,0.00076,60]
[343077652,1732329920718,-500.0,0.00076712,120]
[343077653,1732329920744,-358.17,0.00076712,120]
[343077654,1732329920767,-500.0,0.00076712,120]
[343077655,1732329920790,-500.0,0.00076712,120]
[343077656,1732329920815,-153.74424069,0.00076712,120]
[343077657,1732329920840,-500.0,0.00076712,120]
[343077658,1732329920865,-500.0,0.00076712,120]
[343077659,1732329920888,-500.0,0.00076712,120]
[343077660,1732329920913,-500.0,0.00076712,120]
[343077661,1732329920938,-500.0,0.00076712,120]
[343077662,1732329920962,-500.0,0.00076712,120]
[343077663,1732329920985,-500.0,0.00076712,120]
[343077664,1732329921007,-500.0,0.00076712,120]
[343077665,1732329921029,-350.74697908,0.00076712,120]
[343077666,1732329921052,-500.0,0.00076712,120]
[343077667,1732329929461,3378.49739222,0.000741,2]
[343077668,1732329931563,1000.0,0.00052,30]
[343077669,1732329945177,4973165.70430828,0.00078,2]
[343077670,1732329945202,5026834.29569172,0.00078,2]
[343077671,1732329949415,10000000.0,0.00078,2]
[343077672,1732329951437,10000000.0,0.00078,2]
[343077673,1732329953394,10000000.0,0.00078,2]
[343077675,1732329953921,115639.0,0.00074,120]
[343077676,1732330037121,-999.0,0.00078803,60]
[343077677,1732330037144,-11.10509686,0.00081275,2]
[343077678,1732330043129,-410.01932683,0.00081275,2]
[343077679,1732330089482,306.0,0.0003,120]
[343077708,1732330148917,656.0,0.0007,100]
[343077709,1732330149425,656.0,0.000705,101]
[343077710,1732330150009,656.0,0.00071,102]
[343077720,1732330210259,249.38,0.00041096,2]
[343077721,1732330210473,249.38,0.00046143,2]
[343077722,1732330210724,249.38,0.0005119,2]
[343077723,1732330211050,249.38,0.00056237,120]
[343077724,1732330211311,249.38,0.00061283,120]
[343077725,1732330211545,249.38,0.0006633,120]
[343077739,1732330232452,-249.38,0.00071377,120]
[343077740,1732330232463,-1032.0,0.000715,103]
[343077741,1732330232472,-249.38,0.00076424,120]
[343077742,1732330232482,-1166.55,0.00076712,120]
[343077743,1732330232491,-1166.55,0.00076712,120]
[343077744,1732330232501,-1041.7927,0.00076712,120]
[343077745,1732330232513,-124.7573,0.00076712,120]
[343077746,1732330232523,-1166.55,0.00076712,120]
[343077747,1732330232534,-1166.55,0.00076712,120]
[343077748,1732330232544,-230.24434875,0.00076712,120]
[343077749,1732330232556,-936.30565125,0.00076712,120]
[343077750,1732330232567,-708.1459089,0.00076712,120]
[343077751,1732330232578,-458.4040911,0.00076712,120]
[343077752,1732330232588,-1166.55,0.00076712,120]
[343077753,1732330232597,-851.73485409,0.00076712,120]
[343077754,1732330232612,-314.81514591,0.00076712,120]
[343077755,1732330232621,-138.69485409,0.00076712,120]
[343077756,1732330232633,-1027.85514591,0.00076712,120]
[343077757,1732330232643,-500.0,0.00076712,120]
[343077758,1732330232652,-500.0,0.00076712,120]
[343077759,1732330232662,-200.74971725,0.00076712,120]
[343077760,1732330232671,-228.88214727,0.00077,78]
[343077761,1732330232683,-355.41834579,0.00077,78]
[343077762,1732330232694,-315.69950694,0.00077,78]
[343077763,1732330232703,-166.89835401,0.000779,120]
[343077764,1732330232713,-166.89835401,0.000779,120]
[343077766,1732330232723,-166.89835401,0.000779,120]
[343077768,1732330232732,-166.89835401,0.000779,120]
[343077770,1732330232742,-166.89835401,0.000779,120]
[343077772,1732330232752,-166.89835401,0.000779,120]
[343077774,1732330232762,-166.89835401,0.000779,120]
[343077776,1732330232771,-166.89835401,0.000779,120]
[343077778,1732330232781,-166.89835401,0.000779,120]